fUSD/lending_fUSD_20240518
["ID","MTS","AMOUNT","RATE_DAILY","PERIOD"]
[327410780,1716046252347,-546.4,0.00028737,2]
[327410783,1716046252357,-1266.21,0.00028737,2]
[327410785,1716046252367,-500.0,0.00028737,2]
[327410786,1716046252376,-500.0,0.00028737,2]
[327410788,1716046252386,-500.0,0.00028737,2]
[327410790,1716046252395,-629.97,0.00028737,2]
[327410792,1716046252404,-1164.52,0.00028737,2]
[327410794,1716046252415,-3597.46,0.00028737,2]
[327410796,1716046252424,-578.67,0.00028737,2]
[327410799,1716046252434,-1187.83,0.00028737,2]
[327410801,1716046252443,-500.0,0.00028763,2]
[327410803,1716046252454,-500.0,0.00028763,2]
[327410805,1716046252463,-500.0,0.00028763,2]
[327410807,1716046252472,-500.0,0.00028763,2]
[327410809,1716046252481,-500.0,0.00028763,2]
[327410811,1716046252491,-500.0,0.00028764,2]
[327410813,1716046252500,-150.0,0.00028816,7]
[327410815,1716046252509,-431.97,0.00028909,2]
[327410817,1716046252519,-500.0,0.00028936,2]
[327410819,1716046252528,-500.0,0.00028936,2]
[327410821,1716046252537,-500.0,0.00028936,2]
[327410823,1716046252546,-500.0,0.00028936,2]
[327410825,1716046252555,-466.64,0.00028936,2]
[327410827,1716046252564,-466.76,0.00028936,2]
[327410829,1716046252574,-408.76,0.00028936,2]
[327410831,1716046252583,-500.0,0.00028936,2]
[327410833,1716046252593,-186.46,0.00028936,2]
[327410835,1716046252602,-500.0,0.00028936,2]
[327410837,1716046252611,-500.0,0.00028936,2]
[327410839,1716046252620,-9323.1214263,0.00028955,2]
[327410841,1716046252629,-500.0,0.0002901,2]
[327410843,1716046252639,-500.0,0.0002901,2]
[327410845,1716046252648,-500.0,0.0002901,2]
[327410847,1716046252658,-500.0,0.0002901,2]
[327410849,1716046252667,-500.0,0.0002901,2]
[327410851,1716046252677,-809.8,0.0002901,2]
[327410853,1716046252686,-500.0,0.0002901,2]
[327410855,1716046252695,-560.69,0.0002901,2]
[327410857,1716046252706,-500.0,0.0002901,2]
[327410859,1716046252715,-500.0,0.0002901,2]
[327410861,1716046252725,-500.0,0.0002901,2]
[327410863,1716046252734,-500.0,0.0002901,2]
[327410865,1716046252744,-1986.3,0.0002901,2]
[327410867,1716046252753,-500.0,0.0002901,2]
[327410869,1716046252762,-3819.55,0.0002901,2]
[327410871,1716046252772,-682.63,0.0002901,2]
[327410873,1716046252781,-500.0,0.0002901,2]
[327410875,1716046252791,-500.0,0.00029011,2]
[327410877,1716046252800,-500.0,0.00029011,2]
[327410879,1716046252809,-500.0,0.00029011,2]
[327410881,1716046252818,-500.0,0.00029011,2]
[327410883,1716046252828,-500.0,0.00029011,2]
[327410885,1716046252837,-500.0,0.00029011,2]
[327410887,1716046252847,-500.0,0.00029011,2]
[327410889,1716046252856,-569.34,0.00029011,2]
[327410891,1716046252865,-500.0,0.00029011,2]
[327410893,1716046252875,-500.0,0.00029011,2]
[327410895,1716046252885,-500.0,0.00029011,2]
[327410897,1716046252894,-500.0,0.00029011,2]
[327410899,1716046252903,-500.0,0.00029011,2]
[327410901,1716046252913,-500.0,0.00029011,2]
[327410903,1716046252923,-500.0,0.00029011,2]
[327410905,1716046252932,-500.0,0.00029011,2]
[327410907,1716046252941,-500.0,0.00029011,2]
[327410909,1716046252951,-989.77,0.00029011,2]
[327410911,1716046252960,-500.0,0.00029011,2]
[327410914,1716046252970,-608.1,0.00029011,2]
[327410916,1716046252983,-500.0,0.00029011,2]
[327410918,1716046252993,-500.0,0.00029011,2]
[327410920,1716046253002,-500.0,0.00029011,2]
[327410922,1716046253011,-500.0,0.00029011,2]
[327410924,1716046253023,-500.0,0.00029011,2]
[327410926,1716046253032,-500.0,0.00029011,2]
[327410928,1716046253041,-500.0,0.00029011,2]
[327410930,1716046253051,-896.8,0.00029011,2]
[327410932,1716046253060,-500.0,0.00029011,2]
[327410934,1716046253070,-500.0,0.00029011,2]
[327410936,1716046253080,-500.0,0.00029011,2]
[327410937,1716046253089,-500.0,0.00029011,2]
[327410939,1716046253098,-500.0,0.00029011,2]
[327410942,1716046253108,-500.0,0.00029011,2]
[327410944,1716046253118,-500.0,0.00029011,2]
[327410946,1716046253127,-655.65,0.00029011,2]
[327410948,1716046253137,-500.0,0.00029011,2]
[327410950,1716046253146,-500.0,0.00029011,2]
[327410952,1716046253156,-639.25,0.00029011,2]
[327410954,1716046253165,-500.0,0.00029011,2]
[327410956,1716046253174,-1041.33,0.00029011,2]
[327410958,1716046253183,-500.0,0.00029011,2]
[327410960,1716046253192,-549.92,0.00029011,2]
[327410962,1716046253203,-500.0,0.00029011,2]
[327410964,1716046253212,-500.0,0.00029011,2]
[327410966,1716046253220,-934.31,0.00029011,2]
[327410968,1716046253229,-3103.69,0.00029011,2]
[327410970,1716046253238,-500.0,0.00029011,2]
[327410972,1716046253247,-4162.6,0.00029011,2]
[327410974,1716046253258,-546.4,0.00029011,2]
[327410976,1716046253267,-1266.21,0.00029011,2]
[327410978,1716046253277,-580.95486444,0.00029011,2]
[327410980,1716046253286,-500.0,0.00029011,2]
[327410982,1716046253295,-500.0,0.00029011,2]
[327410984,1716046253305,-1164.52,0.00029011,2]
[327410986,1716046253315,-3597.46,0.00029011,2]
[327410988,1716046253324,-578.67,0.00029011,2]
[327410990,1716046253334,-1187.83,0.00029011,2]
[327410992,1716046253343,-210.88346445,0.00029037,2]
[327410994,1716046253352,-281.2,0.00029037,2]
[327410997,1716046253370,-267.04,0.00029037,2]
[327410999,1716046253380,-500.0,0.00029037,2]
[327411001,1716046253391,-500.0,0.00029037,2]
[327411003,1716046253400,-500.0,0.00029037,2]
[327411005,1716046253411,-500.0,0.00029038,2]
[327411007,1716046253420,-500.0,0.0002921,2]
[327411009,1716046253430,-500.0,0.0002921,2]
[327411011,1716046253439,-500.0,0.0002921,2]
[327411013,1716046253449,-500.0,0.0002921,2]
[327411016,1716046253459,-207.96,0.0002921,2]
[327411018,1716046253468,-500.0,0.0002921,2]
[327411020,1716046253478,-500.0,0.0002921,2]
[327411022,1716046253487,-592.34,0.00029284,2]
[327411024,1716046253497,-500.0,0.00029284,2]
[327411026,1716046253507,-165.86553217,0.00029284,2]
[327411028,1716046253517,-500.0,0.00029284,2]
[327411030,1716046253527,-500.0,0.00029284,2]
[327411032,1716046253537,-809.8,0.00029284,2]
[327411034,1716046253547,-500.0,0.00029284,2]
[327411036,1716046253557,-560.69,0.00029284,2]
[327411038,1716046253566,-500.0,0.00029284,2]
[327411040,1716046253576,-500.0,0.00029284,2]
[327411042,1716046253585,-500.0,0.00029284,2]
[327411044,1716046253595,-500.0,0.00029284,2]
[327411046,1716046253605,-1986.3,0.00029284,2]
[327411048,1716046253614,-480.57234562,0.00029284,2]
[327411050,1716046253624,-3819.55,0.00029284,2]
[327411052,1716046253634,-682.63,0.00029284,2]
[327411054,1716046253643,-500.0,0.00029284,2]
[327411056,1716046253653,-500.0,0.00029285,2]
[327411058,1716046253662,-290.4468392,0.00029285,2]
[327411061,1716046253672,-500.0,0.00029285,2]
[327411063,1716046253682,-500.0,0.00029285,2]
[327411065,1716046253691,-500.0,0.00029285,2]
[327411067,1716046253702,-592.63804542,0.00029285,2]
[327411069,1716046253712,-500.0,0.00029285,2]
[327411071,1716046253722,-569.34,0.00029285,2]
[327411073,1716046253731,-500.0,0.00029285,2]
[327411075,1716046253741,-500.0,0.00029285,2]
[327411077,1716046253750,-576.24,0.00029285,2]
[327411079,1716046253759,-500.0,0.00029285,2]
[327411081,1716046253769,-500.0,0.00029285,2]
[327411083,1716046253778,-500.0,0.00029285,2]
[327411085,1716046253788,-500.0,0.00029285,2]
[327411087,1716046253798,-500.0,0.00029285,2]
[327411089,1716046253807,-500.0,0.00029285,2]
[327411091,1716046253818,-989.77,0.00029285,2]
[327411093,1716046253827,-500.0,0.00029285,2]
[327411095,1716046253837,-608.1,0.00029285,2]
[327411097,1716046253846,-500.0,0.00029285,2]
[327411099,1716046253855,-500.0,0.00029285,2]
[327411101,1716046253864,-500.0,0.00029285,2]
[327411103,1716046253874,-500.0,0.00029285,2]
[327411105,1716046253883,-500.0,0.00029285,2]
[327411107,1716046253892,-500.0,0.00029285,2]
[327411109,1716046253902,-244.51400078,0.00029285,2]
[327411111,1716046253912,-896.8,0.00029285,2]
[327411113,1716046253921,-500.0,0.00029285,2]
[327411115,1716046253931,-500.0,0.00029285,2]
[327411116,1716046253940,-500.0,0.00029285,2]
[327411117,1716046253953,-500.0,0.00029285,2]
[327411118,1716046253965,-500.0,0.00029285,2]
[327411119,1716046253977,-500.0,0.00029285,2]
[327411120,1716046253986,-500.0,0.00029285,2]
[327411121,1716046253996,-655.65,0.00029285,2]
[327411122,1716046254006,-500.0,0.00029285,2]
[327411123,1716046254015,-500.0,0.00029285,2]
[327411125,1716046254025,-500.0,0.00029285,2]
[327411127,1716046254035,-1041.33,0.00029285,2]
[327411129,1716046254045,-500.0,0.00029285,2]
[327411131,1716046254058,-549.92,0.00029285,2]
[327411133,1716046254068,-500.0,0.00029285,2]
[327411135,1716046254078,-500.0,0.00029285,2]
[327411137,1716046254088,-934.31,0.00029285,2]
[327411138,1716046254097,-3103.69,0.00029285,2]
[327411139,1716046254107,-500.0,0.00029285,2]
[327411140,1716046254116,-4162.6,0.00029285,2]
[327411141,1716046254126,-546.4,0.00029285,2]
[327411142,1716046254136,-1266.21,0.00029285,2]
[327411143,1716046254146,-523.86000952,0.00029285,2]
[327411144,1716046254155,-500.0,0.00029285,2]
[327411145,1716046254165,-1164.52,0.00029285,2]
[327411146,1716046254175,-3597.46,0.00029285,2]
[327411147,1716046254185,-578.67,0.00029285,2]
[327411148,1716046254195,-1187.83,0.00029285,2]
[327411149,1716046254206,-500.0,0.00029311,2]
[327411150,1716046254216,-500.0,0.00029311,2]
[327411151,1716046254226,-500.0,0.00029311,2]
[327411152,1716046254236,-161.64,0.00029478,2]
[327411153,1716046254245,-500.0,0.00029484,2]
[327411154,1716046254255,-500.0,0.00029484,2]
[327411155,1716046254264,-634.53,0.00029484,2]
[327411156,1716046254274,-500.0,0.00029484,2]
[327411157,1716046254283,-500.0,0.00029484,2]
[327411158,1716046254293,-500.0,0.00029484,2]
[327411159,1716046254304,-517.14,0.00029558,2]
[327411160,1716046254313,-500.0,0.00029558,2]
[327411161,1716046254323,-500.0,0.00029558,2]
[327411162,1716046254333,-809.8,0.00029558,2]
[327411163,1716046254342,-500.0,0.00029558,2]
[327411164,1716046254352,-560.69,0.00029558,2]
[327411165,1716046254363,-500.0,0.00029558,2]
[327411166,1716046254372,-500.0,0.00029558,2]
[327411167,1716046254382,-500.0,0.00029558,2]
[327411168,1716046254392,-481.45,0.00029558,2]
[327411169,1716046254402,-1986.3,0.00029558,2]
[327411170,1716046254412,-3819.55,0.00029558,2]
[327411171,1716046254423,-682.63,0.00029558,2]
[327411172,1716046254432,-500.0,0.00029558,2]
[327411173,1716046254442,-500.0,0.00029559,2]
[327411174,1716046254453,-500.0,0.00029559,2]
[327411175,1716046254463,-500.0,0.00029559,2]
[327411176,1716046254472,-500.0,0.00029559,2]
[327411177,1716046254482,-500.0,0.00029559,2]
[327411178,1716046254494,-569.34,0.00029559,2]
[327411179,1716046254633,-500.0,0.00029559,2]
[327411180,1716046254666,-500.0,0.00029559,2]
[327411181,1716046254676,-500.0,0.00029559,2]
[327411182,1716046254686,-500.0,0.00029559,2]
[327411183,1716046254696,-500.0,0.00029559,2]
[327411184,1716046254707,-399.31350729,0.00029559,2]
[327411185,1716046254716,-500.0,0.00029559,2]
[327411186,1716046254726,-500.0,0.00029559,2]
[327411187,1716046254736,-989.77,0.00029559,2]
[327411188,1716046254746,-500.0,0.00029559,2]
[327411189,1716046254755,-608.1,0.00029559,2]
[327411190,1716046254765,-500.0,0.00029559,2]
[327411191,1716046254774,-500.0,0.00029559,2]
[327411192,1716046254783,-500.0,0.00029559,2]
[327411193,1716046254793,-500.0,0.00029559,2]
[327411194,1716046254802,-500.0,0.00029559,2]
[327411195,1716046254812,-500.0,0.00029559,2]
[327411196,1716046254822,-896.8,0.00029559,2]
[327411197,1716046254831,-500.0,0.00029559,2]
[327411198,1716046254841,-500.0,0.00029559,2]
[327411199,1716046254851,-500.0,0.00029559,2]
[327411200,1716046254860,-500.0,0.00029559,2]
[327411201,1716046254870,-500.0,0.00029559,2]
[327411202,1716046254879,-500.0,0.00029559,2]
[327411203,1716046254889,-500.0,0.00029559,2]
[327411204,1716046254899,-655.65,0.00029559,2]
[327411205,1716046254909,-500.0,0.00029559,2]
[327411206,1716046254918,-500.0,0.00029559,2]
[327411207,1716046254927,-500.0,0.00029559,2]
[327411208,1716046254937,-1041.33,0.00029559,2]
[327411209,1716046254947,-500.0,0.00029559,2]
[327411210,1716046254956,-549.92,0.00029559,2]
[327411211,1716046254966,-500.0,0.00029559,2]
[327411212,1716046254980,-500.0,0.00029559,2]
[327411213,1716046254989,-934.31,0.00029559,2]
[327411214,1716046254999,-3103.69,0.00029559,2]
[327411215,1716046255009,-500.0,0.00029559,2]
[327411216,1716046255019,-4162.6,0.00029559,2]
[327411217,1716046255029,-546.4,0.00029559,2]
[327411218,1716046255038,-1266.21,0.00029559,2]
[327411219,1716046255048,-500.0,0.00029559,2]
[327411220,1716046255059,-1164.52,0.00029559,2]
[327411221,1716046255069,-3597.46,0.00029559,2]
[327411222,1716046255079,-578.67,0.00029559,2]
[327411223,1716046255089,-1187.83,0.00029559,2]
[327411224,1716046255099,-500.0,0.00029585,2]
[327411225,1716046255108,-500.0,0.00029585,2]
[327411226,1716046255117,-500.0,0.00029585,2]
[327411227,1716046255127,-500.0,0.00029758,2]
[327411228,1716046255137,-643.48,0.00029758,2]
[327411229,1716046255146,-500.0,0.00029758,2]
[327411230,1716046255156,-500.0,0.00029758,2]
[327411231,1716046255166,-500.0,0.00029758,2]
[327411232,1716046255176,-500.0,0.00029832,2]
[327411233,1716046255185,-500.0,0.00029832,2]
[327411234,1716046255194,-809.8,0.00029832,2]
[327411235,1716046255206,-500.0,0.00029832,2]
[327411236,1716046255215,-560.69,0.00029832,2]
[327411237,1716046255225,-500.0,0.00029832,2]
[327411238,1716046255234,-500.0,0.00029832,2]
[327411239,1716046255244,-500.0,0.00029832,2]
[327411240,1716046255254,-1986.3,0.00029832,2]
[327411241,1716046255264,-3819.55,0.00029832,2]
[327411242,1716046255273,-682.63,0.00029832,2]
[327411243,1716046255283,-500.0,0.00029832,2]
[327411244,1716046255293,-500.0,0.00029833,2]
[327411245,1716046255302,-500.0,0.00029833,2]
[327411246,1716046255312,-271.55199114,0.00029833,2]
[327411247,1716046255322,-500.0,0.00029833,2]
[327411248,1716046255332,-500.0,0.00029833,2]
[327411249,1716046255343,-569.34,0.00029833,2]
[327411250,1716046255352,-500.0,0.00029833,2]
[327411251,1716046255362,-500.0,0.00029833,2]
[327411252,1716046255372,-617.70600674,0.00029833,2]
[327411253,1716046255382,-500.0,0.00029833,2]
[327411254,1716046255392,-500.0,0.00029833,2]
[327411255,1716046255402,-500.0,0.00029833,2]
[327411256,1716046255412,-989.77,0.00029833,2]
[327411257,1716046255422,-500.0,0.00029833,2]
[327411258,1716046255432,-608.1,0.00029833,2]
[327411259,1716046255442,-500.0,0.00029833,2]
[327411260,1716046255452,-500.0,0.00029833,2]
[327411261,1716046255463,-500.0,0.00029833,2]
[327411262,1716046255473,-500.0,0.00029833,2]
[327411263,1716046255483,-216.32,0.00029833,2]
[327411264,1716046255493,-500.0,0.00029833,2]
[327411265,1716046255503,-896.8,0.00029833,2]
[327411266,1716046255512,-500.0,0.00029833,2]
[327411267,1716046255522,-500.0,0.00029833,2]
[327411268,1716046255533,-500.0,0.00029833,2]
[327411269,1716046255542,-500.0,0.00029833,2]
[327411270,1716046255552,-500.0,0.00029833,2]
[327411271,1716046255562,-500.0,0.00029833,2]
[327411272,1716046255572,-500.0,0.00029833,2]
[327411273,1716046255582,-655.65,0.00029833,2]
[327411274,1716046255591,-500.0,0.00029833,2]
[327411275,1716046255600,-500.0,0.00029833,2]
[327411276,1716046255611,-500.0,0.00029833,2]
[327411277,1716046255620,-1041.33,0.00029833,2]
[327411278,1716046255630,-500.0,0.00029833,2]
[327411279,1716046255640,-549.92,0.00029833,2]
[327411280,1716046255649,-500.0,0.00029833,2]
[327411281,1716046255659,-500.0,0.00029833,2]
[327411282,1716046255668,-934.31,0.00029833,2]
[327411283,1716046255678,-3103.69,0.00029833,2]
[327411284,1716046255688,-500.0,0.00029833,2]
[327411285,1716046255698,-4162.6,0.00029833,2]
[327411286,1716046255709,-546.4,0.00029833,2]
[327411287,1716046255718,-1266.21,0.00029833,2]
[327411288,1716046255727,-500.0,0.00029833,2]
[327411289,1716046255736,-1164.52,0.00029833,2]
[327411290,1716046255746,-3597.46,0.00029833,2]
[327411291,1716046255755,-578.67,0.00029833,2]
[327411292,1716046255765,-1187.83,0.00029833,2]
[327411293,1716046255776,-500.0,0.00029859,2]
[327411294,1716046255786,-500.0,0.00029859,2]
[327411295,1716046255795,-500.0,0.00029859,2]
[327411296,1716046255804,-2148.96051101,0.00029998,2]
[327411297,1716046255814,-282.33501335,0.00029998,2]
[327411298,1716046255824,-935.09682412,0.00029998,2]
[327411299,1716046255834,-1851.03948899,0.00029998,2]
[327411300,1716046255843,-789.2922901,0.00029998,2]
[327411301,1716046255853,-155.0,0.00029998,2]
[327411302,1716046255863,-817.82411991,0.00029998,2]
[327411303,1716046255874,-712.5895165,0.00029998,2]
[327411304,1716046255884,-155.0,0.00029998,2]
[327411305,1716046255893,-535.53037562,0.00029998,2]
[327411306,1716046255902,-984.98639943,0.00029998,2]
[327411307,1716046255912,-643.1326905,0.00029998,2]
[327411308,1716046255921,-1380.16157324,0.00029998,2]
[327411309,1716046255931,-155.0,0.00029998,2]
[327411310,1716046255940,-217.64940535,0.00029999,2]
[327411311,1716046255950,-1319.3866235,0.00029999,2]
[327411312,1716046255960,-4299.66921066,0.00029999,2]
[327411313,1716046255971,-64033.31261283,0.0003,2]
[327411314,1716046255984,-327.77066928,0.0003,4]
[327411315,1716046255993,-500.0,0.00030032,2]
[327411316,1716046256003,-500.0,0.00030032,2]
[327411317,1716046256013,-500.0,0.00030032,2]
[327411318,1716046256023,-500.0,0.00030032,2]
[327411319,1716046256033,-200.0,0.000301,2]
[327411320,1716046256043,-500.0,0.00030106,2]
[327411321,1716046256056,-500.0,0.00030106,2]
[327411322,1716046256067,-809.8,0.00030106,2]
[327411323,1716046256077,-500.0,0.00030106,2]
[327411324,1716046256087,-560.69,0.00030106,2]
[327411325,1716046256097,-500.0,0.00030106,2]
[327411326,1716046256106,-500.0,0.00030106,2]
[327411327,1716046256116,-500.0,0.00030106,2]
[327411328,1716046256125,-1986.3,0.00030106,2]
[327411329,1716046256135,-3819.55,0.00030106,2]
[327411330,1716046256145,-682.63,0.00030106,2]
[327411331,1716046256155,-500.0,0.00030106,2]
[327411332,1716046256166,-500.0,0.00030107,2]
[327411333,1716046256176,-500.0,0.00030107,2]
[327411334,1716046256186,-500.0,0.00030107,2]
[327411335,1716046256195,-500.0,0.00030107,2]
[327411336,1716046256206,-569.34,0.00030107,2]
[327411337,1716046256215,-500.0,0.00030107,2]
[327411338,1716046256225,-500.0,0.00030107,2]
[327411339,1716046256235,-500.0,0.00030107,2]
[327411340,1716046256245,-626.77,0.00030107,2]
[327411341,1716046256255,-500.0,0.00030107,2]
[327411342,1716046256264,-989.77,0.00030107,2]
[327411343,1716046256274,-500.0,0.00030107,2]
[327411344,1716046256283,-608.1,0.00030107,2]
[327411345,1716046256293,-163.19,0.00030107,2]
[327411346,1716046256303,-500.0,0.00030107,2]
[327411347,1716046256313,-500.0,0.00030107,2]
[327411348,1716046256323,-506.65427051,0.00030107,2]
[327411349,1716046256332,-500.0,0.00030107,2]
[327411350,1716046256342,-896.8,0.00030107,2]
[327411351,1716046256351,-500.0,0.00030107,2]
[327411352,1716046256361,-500.0,0.00030107,2]
[327411353,1716046256371,-500.0,0.00030107,2]
[327411354,1716046256381,-500.0,0.00030107,2]
[327411355,1716046256391,-500.0,0.00030107,2]
[327411356,1716046256401,-537.3,0.00030107,2]
[327411357,1716046256411,-184.39212313,0.00030107,2]
[327411358,1716046256420,-655.65,0.00030107,2]
[327411359,1716046256430,-500.0,0.00030107,2]
[327411360,1716046256440,-500.0,0.00030107,2]
[327411361,1716046256449,-485.78,0.00030107,2]
[327411362,1716046256460,-1041.33,0.00030107,2]
[327411363,1716046256469,-484.8,0.00030107,2]
[327411364,1716046256479,-549.92,0.00030107,2]
[327411365,1716046256488,-446.81496227,0.00030107,2]
[327411366,1716046256498,-500.0,0.00030107,2]
[327411367,1716046256507,-934.31,0.00030107,2]
[327411368,1716046256517,-3103.69,0.00030107,2]
[327411369,1716046256527,-500.0,0.00030107,2]
[327411370,1716046256536,-4162.6,0.00030107,2]
[327411371,1716046256546,-546.4,0.00030107,2]
[327411372,1716046256555,-1266.21,0.00030107,2]
[327411373,1716046256565,-500.0,0.00030107,2]
[327411374,1716046256574,-1164.52,0.00030107,2]
[327411375,1716046256584,-3597.46,0.00030107,2]
[327411376,1716046256594,-578.67,0.00030107,2]
[327411377,1716046256603,-151.0,0.00030107,7]
[327411378,1716046256613,-1187.83,0.00030107,2]
[327411379,1716046256622,-151.0,0.00030107,7]
[327411380,1716046256632,-235.3709142,0.00030133,2]
[327411381,1716046256641,-500.0,0.00030133,2]
[327411382,1716046256651,-500.0,0.00030133,2]
[327411383,1716046256660,-351.59,0.00030137,2]
[327411384,1716046256670,-9323.1214263,0.0003017,2]
[327411385,1716046256679,-500.0,0.00030306,2]
[327411386,1716046256689,-500.0,0.00030306,2]
[327411387,1716046256698,-383.55583544,0.00030306,2]
[327411388,1716046256708,-315.25362236,0.00030306,2]
[327411389,1716046256718,-500.0,0.0003038,2]
[327411390,1716046256727,-429.72,0.0003038,2]
[327411391,1716046256737,-809.8,0.0003038,2]
[327411392,1716046256747,-500.0,0.0003038,2]
[327411393,1716046256757,-560.69,0.0003038,2]
[327411394,1716046256766,-500.0,0.0003038,2]
[327411395,1716046256775,-500.0,0.0003038,2]
[327411396,1716046256785,-500.0,0.0003038,2]
[327411397,1716046256794,-1986.3,0.0003038,2]
[327411398,1716046256803,-3819.55,0.0003038,2]
[327411399,1716046256813,-682.63,0.0003038,2]
[327411400,1716046256822,-500.0,0.0003038,2]
[327411401,1716046256831,-500.0,0.00030381,2]
[327411402,1716046256841,-157.7545942,0.00030381,2]
[327411403,1716046256850,-376.87,0.00030381,2]
[327411404,1716046256860,-500.0,0.00030381,2]
[327411405,1716046256869,-569.34,0.00030381,2]
[327411406,1716046256878,-500.0,0.00030381,2]
[327411407,1716046256888,-500.0,0.00030381,2]
[327411408,1716046256897,-500.0,0.00030381,2]
[327411409,1716046256908,-500.0,0.00030381,2]
[327411410,1716046256917,-989.77,0.00030381,2]
[327411411,1716046256927,-500.0,0.00030381,2]
[327411412,1716046256936,-267.481126,0.00030381,7]
[327411413,1716046256945,-608.1,0.00030381,2]
[327411414,1716046256955,-151.0,0.00030381,7]
[327411415,1716046256964,-500.0,0.00030381,2]
[327411416,1716046256976,-500.0,0.00030381,2]
[327411417,1716046256985,-823.273202,0.00030381,7]
[327411418,1716046256995,-823.273202,0.00030381,7]
[327411419,1716046257004,-500.0,0.00030381,2]
[327411420,1716046257015,-151.0,0.00030381,7]
[327411421,1716046257025,-896.8,0.00030381,2]
[327411422,1716046257035,-151.0,0.00030381,7]
[327411423,1716046257044,-170.72,0.00030381,2]
[327411424,1716046257055,-500.0,0.00030381,2]
[327411425,1716046257065,-433.94077241,0.00030381,2]
[327411426,1716046257075,-500.0,0.00030381,2]
[327411427,1716046257115,-151.0,0.00030381,7]
[327411428,1716046257126,-151.0,0.00030381,7]
[327411429,1716046257136,-500.0,0.00030381,2]
[327411430,1716046257148,-151.0,0.00030381,7]
[327411431,1716046257160,-252.623868,0.00030381,7]
[327411432,1716046257169,-655.65,0.00030381,2]
[327411433,1716046257180,-365.71988,0.00030381,7]
[327411434,1716046257190,-500.0,0.00030381,2]
[327411435,1716046257199,-365.71988,0.00030381,7]
[327411436,1716046257208,-151.0,0.00030381,7]
[327411437,1716046257218,-500.0,0.00030381,2]
[327411438,1716046257227,-1041.33,0.00030381,2]
[327411439,1716046257236,-151.0,0.00030381,7]
[327411440,1716046257246,-151.0,0.00030381,7]
[327411441,1716046257255,-549.92,0.00030381,2]
[327411442,1716046257264,-500.0,0.00030381,2]
[327411443,1716046257274,-934.31,0.00030381,2]
[327411444,1716046257283,-151.0,0.00030381,7]
[327411445,1716046257293,-3103.69,0.00030381,2]
[327411446,1716046257302,-204.61438,0.00030381,7]
[327411447,1716046257311,-500.0,0.00030381,2]
[327411448,1716046257321,-4162.6,0.00030381,2]
[327411449,1716046257330,-546.4,0.00030381,2]
[327411450,1716046257339,-1266.21,0.00030381,2]
[327411451,1716046257349,-157.138071,0.00030381,7]
[327411452,1716046257358,-157.138071,0.00030381,7]
[327411453,1716046257367,-500.0,0.00030381,2]
[327411454,1716046257377,-1164.52,0.00030381,2]
[327411455,1716046257386,-3597.46,0.00030381,2]
[327411456,1716046257396,-578.67,0.00030381,2]